bitfinex-derivatives/quotes_SOLF0:USTF0_20220110
["timestamp","ask_amount","ask_price","bid_price","bid_amount"]
[1641782311187,4.03294946,140.59,140.56,1.55848614]
[1641782312992,4.03294946,140.59,140.54,1.55848614]
[1641782313393,8.03294946,140.59,140.54,1.55848614]
[1641782313591,8.03294946,140.59,140.52,1.55848614]
[1641782314091,4.03294946,140.58,140.52,1.55848614]
[1641782314591,8.03294946,140.58,140.52,1.55848614]
[1641782314793,9.69118302,140.57,140.52,1.55848614]
[1641782314995,5.69207294,140.55,140.52,1.55848614]
[1641782315192,9.69207294,140.55,140.49,1.55848614]
[1641782315392,4.03294946,140.54,140.49,1.55848614]
[1641782315594,11.88694946,140.54,140.49,1.55848614]
[1641782316192,7.854,140.54,140.47,1.55848614]
[1641782316392,7.854,140.54,140.47,31.00127614]
[1641782316796,7.854,140.54,140.47,44.9329333]
[1641782316994,59.74367294,140.55,140.47,44.9329333]
[1641782317195,59.74367294,140.55,140.48,1.55848614]
[1641782317399,54.0516,140.55,140.48,1.55848614]
[1641782317599,54.0516,140.55,140.48,11.4901433]
[1641782317896,54.0516,140.55,140.49,1.55848614]
[1641782318098,10.82922661,140.58,140.49,1.55848614]
[1641782318297,6.82922661,140.58,140.49,5.55848614]
[1641782318496,4.03450023,140.57,140.5,27.66479]
[1641782318698,4.03450023,140.57,140.5,33.60979]
[1641782318996,4.03450023,140.57,140.51,1.55848614]
[1641782320401,6.82922661,140.58,140.51,11.4901433]
[1641782320800,6.82922661,140.58,140.52,1.55848614]
[1641782321601,4.03439839,140.57,140.52,1.55848614]
[1641782322201,4.03439839,140.57,140.52,16.62457225]
[1641782322402,27.66479,140.56,140.52,16.62457225]
[1641782322605,27.66479,140.56,140.53,1.55848614]
[1641782323406,4.03503119,140.55,140.53,1.55848614]
[1641782324205,4.03503119,140.55,140.52,1.55848614]
[1641782325007,4.03503119,140.55,140.51,1.55848614]
[1641782325511,4.03503119,140.55,140.5,1.55848614]
[1641782329013,4.03503119,140.55,140.49,1.55848614]
[1641782331615,4.03503119,140.55,140.5,2.46802365]
[1641782332016,4.03503119,140.55,140.51,1.55848614]
[1641782332915,4.03503119,140.55,140.52,2.46802365]
[1641782333117,27.66479,140.56,140.52,2.46802365]
[1641782333317,6.82927833,140.58,140.52,2.46802365]
[1641782333615,6.82927833,140.58,140.53,1.55848614]
[1641782334416,4.03435658,140.57,140.53,1.55848614]
[1641782334618,4.03435658,140.57,140.54,2.46802365]
[1641782335018,4.03435658,140.57,140.55,1.55848614]
[1641782336818,4.03435658,140.57,140.53,1.55848614]
[1641782337618,34.49406833,140.58,140.54,2.47017604]
[1641782338018,4.03438171,140.57,140.55,1.55848614]
[1641782338820,11.29338171,140.57,140.55,1.55848614]
[1641782339422,4.03438171,140.56,140.54,1.55848614]
[1641782339621,4.03438171,140.56,140.54,8.614e-05]
[1641782339921,8.03438171,140.56,140.52,8.614e-05]
[1641782340121,5.6921777,140.55,140.52,8.614e-05]
[1641782340321,4.0,140.54,140.52,8.614e-05]
[1641782340522,11.769,140.54,140.52,8.614e-05]
[1641782340722,55.32958,140.53,140.52,8.614e-05]
[1641782341123,59.36516762,140.53,140.52,8.614e-05]
[1641782341723,59.36516762,140.53,140.5,8.614e-05]
[1641782342122,55.32958,140.53,140.5,8.614e-05]
[1641782343024,5.6921777,140.55,140.5,8.614e-05]
[1641782343428,4.03528496,140.54,140.5,8.614e-05]
[1641782343924,13.30328496,140.54,140.5,8.614e-05]
[1641782344125,17.30328496,140.54,140.5,15.06617225]
[1641782344325,4.03528496,140.53,140.5,15.06617225]
[1641782344727,27.66479,140.51,140.48,15.06608611]
[1641782344926,4.03528496,140.53,140.48,15.06608611]
[1641782345128,5.6921777,140.55,140.48,15.06608611]
[1641782345626,4.03532454,140.54,140.49,15.06608611]
[1641782346627,4.03532454,140.54,140.5,15.06608611]
[1641782348830,27.66479,140.53,140.5,15.06608611]
[1641782349031,27.66479,140.53,140.49,15.06608611]
[1641782350133,61.2138777,140.55,140.49,15.06608611]
[1641782350333,4.03573067,140.52,140.49,20.81608611]
[1641782350734,4.03573067,140.54,140.49,48.48087611]
[1641782351137,4.03573067,140.54,140.5,4.0]
[1641782351336,6.82981617,140.57,140.5,4.0]
[1641782351534,6.82981617,140.57,140.5,86.60205177]
[1641782351935,6.82981617,140.57,140.5,82.60205177]
[1641782352335,50.6135,140.58,140.5,86.60205177]
[1641782352534,50.6135,140.58,140.5,82.60205177]
[1641782352836,50.6135,140.58,140.53,42.73087611]
[1641782353035,27.66479,140.6,140.53,42.73087611]
[1641782353434,31.66479,140.6,140.54,2.47314821]
[1641782353642,27.66479,140.6,140.54,2.47314821]
[1641782354340,27.66479,140.6,140.53,15.06608611]
[1641782355036,27.66479,140.6,140.52,15.06608611]
[1641782356037,27.66479,140.6,140.53,15.06608611]
[1641782358040,27.66479,140.6,140.53,17.53923432]
[1641782360143,27.66479,140.6,140.54,2.07933334]
[1641782361044,5.6903756,140.59,140.55,2.47314821]
[1641782361446,5.6903756,140.59,140.56,2.07933334]
[1641782361745,5.69113856,140.57,140.56,2.07933334]
[1641782361945,11.61613856,140.57,140.56,2.07933334]
[1641782362446,11.61613856,140.57,140.53,15.06608611]
[1641782362648,11.61613856,140.57,140.5,70.20268611]
[1641782362847,11.61613856,140.57,140.54,2.08040593]
[1641782363047,27.66479,140.55,140.54,2.08040593]
[1641782363247,27.66479,140.55,140.51,2.08040593]
[1641782363448,33.35705789,140.55,140.51,2.08040593]
[1641782364247,33.35705789,140.55,140.52,2.47395246]
[1641782364655,33.35705789,140.55,140.53,2.08040593]
[1641782365448,33.35705789,140.55,140.52,2.08040593]
[1641782365951,27.66479,140.55,140.52,2.08040593]
[1641782366451,27.66479,140.55,140.5,2.08040593]
[1641782366649,27.66479,140.55,140.53,2.47368396]
[1641782367151,6.82944985,140.57,140.54,2.08040593]
[1641782367551,4.03487412,140.56,140.54,2.08040593]
[1641782368150,4.03487412,140.56,140.52,2.08040593]
[1641782369252,4.03487412,140.56,140.53,2.47382848]
[1641782369850,4.03487412,140.56,140.54,2.08040593]
[1641782370751,62.44423263,140.6,140.54,2.08040593]
[1641782370752,27.66479,140.6,140.54,2.08040593]
[1641782371153,60.63040557,140.61,140.54,2.08040593]
[1641782371358,4.03457702,140.59,140.54,2.08040593]
[1641782371755,4.03457702,140.6,140.54,2.08040593]
[1641782371953,4.03457702,140.6,140.55,2.47339297]
[1641782372551,4.03457702,140.6,140.56,2.08040593]
[1641782373553,4.03457702,140.6,140.57,2.47339297]
[1641782374255,4.03457702,140.6,140.58,2.08040593]
[1641782375557,4.03457702,140.6,140.56,2.08040593]
[1641782376357,4.03457702,140.63,140.56,2.08040593]
[1641782376657,4.03457702,140.63,140.57,2.47240479]
[1641782377258,4.03457702,140.63,140.58,2.08040593]
[1641782377561,9.68935531,140.62,140.58,2.08040593]
[1641782377760,5.69036703,140.59,140.58,2.08040593]
[1641782377961,14.24736703,140.59,140.58,2.08040593]
[1641782378261,18.28194405,140.59,140.53,67.93988611]
[1641782378661,18.28194405,140.59,140.53,52.8738]
[1641782379161,4.03457702,140.58,140.54,2.07977554]
[1641782379562,4.03457702,140.58,140.54,2.47268975]
[1641782379961,4.03457702,140.58,140.55,2.07977554]
[1641782381461,4.03457702,140.58,140.56,2.47268975]
[1641782382161,4.03457702,140.58,140.57,2.07977554]
[1641782383064,4.03457702,140.58,140.53,2.07977554]
[1641782384063,4.03457702,140.58,140.54,2.47364649]
[1641782384467,4.03457702,140.58,140.55,2.07977554]
[1641782386068,4.03457702,140.58,140.56,2.47361294]
[1641782386668,4.03457702,140.58,140.57,2.07977554]
[1641782387770,4.03457702,140.58,140.55,2.07977554]
[1641782388169,4.03457702,140.58,140.53,2.07977554]
[1641782388370,4.03457702,140.58,140.56,2.47365747]
[1641782389070,4.03457702,140.58,140.57,2.07977554]
[1641782389471,4.03457702,140.59,140.55,2.07977554]
[1641782390274,4.03457702,140.59,140.56,2.4736789]
[1641782390773,4.03457702,140.59,140.57,2.07977554]
[1641782392574,4.03457702,140.59,140.55,2.07977554]
[1641782393274,4.03457702,140.59,140.56,2.47418502]
[1641782393679,4.03457702,140.59,140.57,2.07977554]
[1641782395377,4.03457702,140.59,140.54,31.66479]
[1641782395378,4.03457702,140.59,140.55,2.07977554]
[1641782395779,27.66479,140.61,140.55,6.07977554]
[1641782395780,4.03457702,140.6,140.55,6.07977554]
[1641782395980,4.03457702,140.6,140.56,2.47570484]
[1641782396479,4.03457702,140.6,140.56,4.55548038]
[1641782396880,4.03457702,140.61,140.57,2.07977554]
[1641782397284,4.03457702,140.61,140.57,4.55548038]
[1641782397683,4.03457702,140.61,140.58,2.07977554]
[1641782398982,4.03457702,140.61,140.56,2.07977554]
[1641782399382,31.69936702,140.61,140.56,2.07977554]
[1641782399786,4.03457702,140.6,140.57,2.47620986]
[1641782399984,12.44657702,140.6,140.57,2.47620986]
[1641782400184,12.44657702,140.6,140.58,2.07977554]
[1641782400586,4.03457702,140.59,140.58,2.07977554]
[1641782400985,4.03457702,140.59,140.56,2.07977554]
[1641782402086,4.03457702,140.59,140.57,2.4765824]
[1641782402689,4.03457702,140.6,140.58,2.07977554]
[1641782404096,4.03457702,140.6,140.56,2.07977554]
[1641782404293,4.03457702,140.6,140.56,6.07977554]
[1641782404895,4.03457702,140.6,140.56,2.07977554]
[1641782405092,4.03457702,140.61,140.57,2.07977554]
[1641782405692,4.03457702,140.61,140.58,27.66479]
[1641782405893,4.03457702,140.61,140.57,4.55631682]
[1641782406294,4.03457702,140.63,140.58,2.07977554]
[1641782406796,4.03457702,140.63,140.59,2.47654128]
[1641782407195,4.03457702,140.63,140.6,2.07977554]
[1641782409098,4.03457702,140.63,140.57,2.07977554]
[1641782409298,9.723501,140.63,140.57,2.07977554]
[1641782409601,4.03457702,140.62,140.57,2.07977554]
[1641782409797,10.61457702,140.62,140.57,2.07977554]
[1641782410000,10.61457702,140.62,140.58,2.47494073]
[1641782410298,5.68978788,140.61,140.58,2.47494073]
[1641782410498,5.6901847,140.6,140.58,2.47494073]
[1641782410701,5.6901847,140.6,140.55,66.81238611]
[1641782410900,4.03457702,140.59,140.55,51.7463]
[1641782411199,11.86257702,140.59,140.55,51.7463]
[1641782411399,11.86257702,140.59,140.56,2.07972837]
[1641782411799,4.03457702,140.58,140.56,4.55535808]
[1641782412299,4.03457702,140.58,140.57,2.07972837]
[1641782413604,4.03457702,140.58,140.53,2.07972837]
[1641782413801,4.03457702,140.58,140.53,31.10350853]
[1641782414402,15.06608611,140.62,140.54,2.07972837]
[1641782414604,20.75498768,140.63,140.54,19.62162852]
[1641782414802,4.03423521,140.61,140.55,4.0]
[1641782415004,4.03423521,140.61,140.54,21.39962852]
[1641782415202,4.03423521,140.62,140.56,2.07972837]
[1641782415603,4.03423521,140.62,140.56,2.47581404]
[1641782415803,4.03423521,140.62,140.56,30.14060404]
[1641782416003,4.03423521,140.62,140.57,2.07972837]
[1641782416406,4.03423521,140.62,140.57,4.55554241]
[1641782417004,4.03423521,140.62,140.58,2.07972837]
[1641782417405,4.03423521,140.62,140.58,4.55554241]
[1641782417805,4.03423521,140.62,140.59,2.07972837]
[1641782418005,4.03423521,140.62,140.59,4.55554241]
[1641782418606,4.03423521,140.62,140.6,2.07972837]
[1641782419406,4.03423521,140.62,140.57,2.07972837]
[1641782420507,4.03423521,140.62,140.58,2.4753735]
[1641782420909,4.03423521,140.62,140.59,2.07972837]
[1641782422410,4.03423521,140.62,140.57,2.07972837]
[1641782423615,4.03423521,140.62,140.58,2.4753114]
[1641782424112,4.03423521,140.62,140.59,2.07972837]
[1641782425315,4.03423521,140.62,140.57,2.07972837]
[1641782426416,4.03423521,140.62,140.58,2.47553843]
[1641782427116,4.03423521,140.62,140.59,2.07972837]
[1641782428617,4.03423521,140.62,140.57,2.07972837]
[1641782429821,4.03423521,140.62,140.58,2.47528351]
[1641782430122,4.03423521,140.62,140.58,9.71728351]
[1641782430318,4.03423521,140.62,140.59,2.07972837]
[1641782432126,4.03423521,140.62,140.59,6.07972837]
[1641782432527,4.03423521,140.63,140.59,6.07972837]
[1641782432728,4.03423521,140.63,140.6,4.0]
[1641782432931,4.03423521,140.63,140.6,8.55473365]
[1641782433229,4.03423521,140.65,140.61,2.07972837]
[1641782433431,4.03423521,140.65,140.61,10.62172837]
[1641782433630,4.03423521,140.65,140.61,13.09673365]
[1641782434030,4.03423521,140.65,140.62,2.07972837]
[1641782436435,23.25545122,140.68,140.63,4.0]
[1641782436635,15.06608611,140.68,140.64,4.0]
[1641782436833,15.06608611,140.68,140.64,12.045]
[1641782437036,15.06608611,140.68,140.64,8.045]
[1641782437239,15.06608611,140.68,140.64,12.045]
[1641782437636,4.03214387,140.67,140.65,9.39683706]
[1641782437835,2.55395194,140.71,140.66,4.0]
[1641782438035,4.0317675,140.7,140.66,2.92427965]
[1641782438436,4.0317675,140.7,140.67,27.66479]
[1641782438638,4.0317675,140.7,140.67,35.05879]
[1641782438837,4.0317675,140.7,140.67,37.53134741]
[1641782439038,4.0317675,140.71,140.68,2.92427965]
[1641782439337,4.0317675,140.72,140.69,2.92427965]
[1641782439838,4.0317675,140.72,140.7,2.92427965]
[1641782440137,4.0317675,140.72,140.67,7.394]
[1641782440337,62.08372688,140.75,140.67,7.394]
[1641782440538,66.08372688,140.75,140.67,7.394]
[1641782440840,4.0317675,140.71,140.68,2.49219266]
[1641782441238,4.0317675,140.72,140.65,52.8976]
[1641782441438,4.0317675,140.72,140.65,56.8976]
[1641782441639,4.0317675,140.72,140.66,2.49219567]
[1641782442437,4.0317675,140.72,140.67,27.66479]
[1641782443341,4.0317675,140.72,140.68,2.49219567]
[1641782444241,4.0317675,140.72,140.66,2.49219567]
[1641782444440,4.0317675,140.72,140.66,30.15698567]
[1641782445240,4.0317675,140.72,140.67,2.49219567]
[1641782448047,4.0317675,140.72,140.66,2.49219567]
[1641782449044,4.0317675,140.72,140.66,30.15698567]
[1641782449445,4.0317675,140.72,140.67,2.49219567]
[1641782449845,9.71694942,140.72,140.66,2.49219567]
[1641782450044,15.69294942,140.72,140.66,2.49219567]
[1641782450245,4.0317675,140.71,140.66,2.49219567]
[1641782453449,5.68586528,140.7,140.66,2.49219567]
[1641782453852,4.0317675,140.69,140.66,2.49219567]
[1641782456355,4.0317675,140.7,140.66,2.49219567]
[1641782461656,4.0317675,140.7,140.66,11.55619567]
[1641782462059,4.0317675,140.7,140.67,2.49219567]
[1641782462558,4.0317675,140.7,140.67,6.49219567]
[1641782462758,4.0317675,140.7,140.68,4.0]
[1641782463057,6.82076574,140.75,140.68,4.0]
[1641782463058,4.0317675,140.72,140.68,8.96151902]
[1641782463558,4.0317675,140.74,140.69,6.49219567]
[1641782463757,4.0317675,140.74,140.7,27.66479]
[1641782463957,4.0317675,140.74,140.7,30.15698567]
[1641782464358,19.09785361,140.76,140.71,2.49219567]
[1641782464859,19.09785361,140.76,140.71,6.49219567]
[1641782465057,4.0317675,140.75,140.71,6.49219567]
[1641782465457,4.0317675,140.75,140.73,4.0]
[1641782465658,4.0317675,140.75,140.73,11.601]
[1641782465859,4.0317675,140.77,140.74,2.49219567]
[1641782466059,6.75e-05,140.77,140.76,4.0]
[1641782466259,6.75e-05,140.77,140.76,12.714]
[1641782466459,15.06608611,140.79,140.76,12.714]
[1641782466460,0.00015361,140.79,140.76,12.714]
[1641782466659,40.05935083,140.83,140.78,4.0]
[1641782466861,40.05935083,140.83,140.8,4.0]
[1641782467060,40.05935083,140.83,140.8,10.453]
[1641782467362,2.54995624,140.84,140.81,4.0]
[1641782467561,2.74520096,140.82,140.81,8.0277856]
[1641782467762,40.05935083,140.89,140.81,65.1313656]
[1641782468061,40.05935083,140.89,140.81,61.1313656]
[1641782468260,40.05935083,140.89,140.84,4.0]
[1641782468461,61.90971357,140.92,140.84,11.756]
[1641782468462,2.74462356,140.88,140.84,11.756]
[1641782469062,2.74462356,140.91,140.85,4.0277856]
[1641782469263,6.74462356,140.91,140.85,4.0277856]
[1641782469563,2.74462356,140.9,140.85,4.0277856]
[1641782469865,30.40941356,140.9,140.82,4.0277856]
[1641782470063,30.40941356,140.9,140.82,8.0277856]
[1641782470064,37.64341356,140.9,140.82,8.0277856]
[1641782470263,2.74462356,140.89,140.82,8.0277856]
[1641782470665,2.74462356,140.89,140.83,4.0277856]
[1641782470864,2.74462356,140.89,140.83,12.1747856]
[1641782471464,2.74462356,140.89,140.84,4.0277856]
[1641782471667,2.74462356,140.9,140.84,4.0277856]
[1641782472067,2.74462356,140.91,140.84,4.0277856]
[1641782472471,6.74462356,140.92,140.84,4.0277856]
[1641782473069,2.74462356,140.91,140.84,4.0277856]
[1641782473268,2.74462356,140.91,140.84,8.0277856]
[1641782473471,6.74462356,140.92,140.84,8.0277856]
[1641782473669,6.74462356,140.92,140.84,4.0277856]
[1641782473870,2.74462356,140.91,140.86,27.66479]
[1641782474269,2.74462356,140.91,140.87,4.0277856]
[1641782474871,2.74462356,140.92,140.87,4.0277856]
[1641782475271,2.74462356,140.91,140.87,4.0277856]
[1641782475671,2.74462356,140.9,140.87,4.0277856]
[1641782476172,2.74462356,140.89,140.87,4.0277856]
[1641782476571,2.74462356,140.88,140.87,4.0277856]
[1641782481081,8.53562356,140.88,140.81,29.43879]
[1641782481283,5.791,140.88,140.81,29.43879]
[1641782481581,5.791,140.88,140.81,31.66479]
[1641782482080,5.791,140.88,140.82,4.0]
[1641782482280,3.13045137,140.87,140.82,13.92404577]
[1641782482683,3.13045137,140.89,140.83,4.02704577]
[1641782482880,3.13045137,140.89,140.83,9.80104577]
[1641782483481,3.13045137,140.89,140.84,4.02704577]
[1641782483681,3.13045137,140.89,140.85,4.0]
[1641782483881,3.13045137,140.89,140.85,11.999]
[1641782484484,3.13045137,140.89,140.86,4.02704577]
[1641782484883,3.13045137,140.92,140.86,4.02704577]
[1641782485284,34.47696666,140.93,140.86,4.02704577]
[1641782485285,3.13045137,140.91,140.86,4.02704577]
[1641782485483,3.13045137,140.91,140.87,4.0]
[1641782485684,3.13045137,140.9,140.87,4.0]
[1641782485884,3.13045137,140.9,140.89,27.66479]
[1641782486085,3.13045137,140.9,140.89,35.53179]
[1641782486285,3.13045137,140.9,140.89,39.55883577]
[1641782488687,5.137e-05,140.9,140.89,43.55883577]
[1641782488887,5.137e-05,140.9,140.89,39.55883577]
[1641782489090,5.137e-05,140.9,140.89,43.55883577]
[1641782489287,27.66479,140.96,140.89,43.55883577]
[1641782489488,27.66479,140.96,140.91,4.0]
[1641782489888,78.80109,140.98,140.91,4.0]
[1641782489889,51.1363,140.98,140.91,4.0]
[1641782490089,2.8151426,140.95,140.93,27.66479]
[1641782490289,2.8151426,140.95,140.93,36.08979]
[1641782490691,2.8151426,140.97,140.93,36.08979]
[1641782491090,2.8151426,140.97,140.94,4.02504872]
[1641782491493,2.8151426,140.99,140.94,4.02504872]
[1641782494397,6.8151426,140.99,140.94,4.02504872]
[1641782494595,12.48936688,140.99,140.94,4.02504872]
[1641782494995,2.8151426,140.98,140.94,4.02504872]
[1641782495195,14.1721426,140.98,140.94,4.02504872]
[1641782495395,4.0,140.95,140.88,1.773]
[1641782495595,13.246,140.95,140.87,10.6]
[1641782495795,4.0,140.88,140.87,10.6]
[1641782495997,6.917,140.88,140.83,37.56227415]
[1641782496194,6.917,140.88,140.83,27.66479]
[1641782496399,6.917,140.88,140.81,27.66479]
[1641782496794,3.39813503,140.87,140.82,4.02700295]
[1641782497296,3.39813503,140.87,140.8,4.02700295]
[1641782497598,3.39813503,140.87,140.81,1.774]
[1641782497796,3.39813503,140.87,140.84,4.0]
[1641782497996,3.39813503,140.89,140.86,31.66479]
[1641782498200,3.39813503,140.89,140.86,27.66479]
[1641782498600,3.39813503,140.92,140.87,4.02700295]
[1641782498799,3.39813503,140.92,140.87,12.25100295]
[1641782499001,3.39813503,140.94,140.87,12.25100295]
[1641782499502,3.39813503,140.94,140.88,4.02700295]
[1641782501403,3.39813503,140.94,140.88,5.80100295]
[1641782501605,3.39813503,140.95,140.88,5.80100295]
[1641782501904,3.39813503,140.95,140.88,9.80100295]
[1641782502103,3.39813503,140.94,140.9,27.66479]
[1641782502304,3.39813503,140.94,140.9,36.24479]
[1641782502503,3.39813503,140.93,140.91,4.02700295]
[1641782502904,35.8361572,140.99,140.91,4.02700295]
[1641782503304,2.59098746,140.98,140.92,4.0]
[1641782503504,2.59098746,140.98,140.92,5.772]
[1641782504006,2.59098746,140.98,140.93,8.02700295]
[1641782504208,2.59098746,140.98,140.93,41.63379295]
[1641782504410,2.59098746,140.98,140.94,5.772]
[1641782504808,2.59098746,141.0,140.95,4.02700295]
[1641782505205,2.59098746,141.02,140.95,4.02700295]
[1641782506205,4.0,140.98,140.94,4.02700295]
[1641782506407,12.858,140.98,140.94,4.02700295]
[1641782506605,2.59098746,140.97,140.93,4.02700295]
[1641782506811,2.59098746,140.97,140.93,2.95e-06]
[1641782507007,4.0,140.95,140.88,15.00845208]
[1641782507206,9.999,140.95,140.86,15.00845208]
[1641782507408,7.09723208,140.94,140.86,15.00845208]
[1641782507707,12.77347628,140.94,140.86,15.00845208]
[1641782508107,27.66479,140.91,140.86,15.00845208]
[1641782508311,34.19179,140.91,140.87,3.44768771]
[1641782508708,4.02644166,140.9,140.84,3.44768771]
[1641782509109,16.88344166,140.9,140.84,3.44768771]
[1641782509314,4.0,140.89,140.84,8.771e-05]
[1641782509510,8.02644166,140.89,140.84,8.771e-05]
[1641782509710,7.10050769,140.88,140.84,8.771e-05]
[1641782510010,7.10176834,140.85,140.78,1.774]
[1641782510211,27.66479,140.8,140.79,2.45974955]
[1641782510510,35.81379,140.8,140.79,2.45974955]
[1641782510710,35.81379,140.8,140.79,4.955e-05]
[1641782510910,35.81379,140.8,140.77,14.9950451]
[1641782511316,7.10227273,140.84,140.74,39.87794912]
[1641782511512,4.02871142,140.79,140.78,2.58741212]
[1641782511712,4.02871142,140.79,140.78,9.73141212]
[1641782512111,27.66479,140.81,140.78,7.144]
[1641782512611,4.02871142,140.8,140.79,2.58741212]
[1641782513011,4.02871142,140.83,140.79,2.58741212]
[1641782513212,8.02871142,140.83,140.79,2.58741212]
[1641782513414,8.02871142,140.83,140.75,2.58741212]
[1641782513612,4.0,140.82,140.75,2.58741212]
[1641782514012,8.02871142,140.81,140.75,2.58741212]
[1641782514218,27.66479,140.79,140.75,2.58741212]
[1641782514416,4.02871142,140.8,140.73,2.58741212]
[1641782515015,4.02871142,140.81,140.74,1.776]
[1641782515315,4.02871142,140.82,140.75,2.58741212]
[1641782516117,4.02871142,140.82,140.76,27.66479]
[1641782516821,4.02871142,140.82,140.77,2.58741212]
[1641782517418,4.02871142,140.82,140.77,11.29241212]
[1641782518116,4.02871142,140.82,140.78,2.58741212]
[1641782519118,4.02871142,140.82,140.78,8.864]
[1641782519523,4.02871142,140.85,140.79,2.58741212]
[1641782520220,4.02871142,140.85,140.79,30.25220212]
[1641782520419,4.02871142,140.85,140.79,2.58741212]
[1641782520621,9.7086475,140.85,140.79,2.58741212]
[1641782521223,4.02871142,140.84,140.78,8.238]
[1641782521623,4.02871142,140.84,140.79,6.58741212]
[1641782521824,4.02871142,140.84,140.8,1.774]
[1641782522025,4.02871142,140.87,140.8,4.36141212]
[1641782522223,4.02871142,140.87,140.81,27.66479]
[1641782522424,4.02871142,140.87,140.81,36.75020212]
[1641782522623,4.02871142,140.89,140.81,36.75020212]
[1641782522925,4.02871142,140.9,140.82,2.58741212]
[1641782524126,27.66479,140.89,140.82,2.58741212]
[1641782524325,34.89079,140.89,140.82,2.58741212]
[1641782524729,4.02871142,140.88,140.82,2.58741212]
[1641782525729,4.02871142,140.9,140.82,2.58741212]
[1641782525929,4.02871142,140.9,140.82,9.22041212]
[1641782526730,4.02871142,140.9,140.83,2.58741212]
[1641782527134,11.10025561,140.88,140.83,2.58741212]
[1641782527431,4.0,140.87,140.83,1.212e-05]
[1641782527631,12.81425561,140.88,140.77,29.43879]
[1641782528131,27.66479,140.86,140.77,29.43879]
[1641782528333,27.66479,140.86,140.77,31.66479]
[1641782528534,4.02765368,140.85,140.78,2.04298822]
[1641782528734,4.02765368,140.85,140.79,1.774]
[1641782528934,4.02765368,140.87,140.79,1.774]
[1641782529537,4.02765368,140.87,140.8,2.04298822]
[1641782530137,4.02765368,140.87,140.84,27.66479]
[1641782530337,4.02765368,140.87,140.84,34.47879]
[1641782530738,4.02765368,140.91,140.85,2.04298822]
[1641782531538,4.02765368,140.93,140.85,2.04298822]
[1641782532139,4.02765368,140.93,140.88,27.66479]
[1641782532340,4.02765368,140.93,140.88,34.00779]
[1641782532538,4.02765368,140.93,140.89,2.04298822]
[1641782533039,4.02765368,140.94,140.89,2.04298822]
[1641782534140,27.66479,140.93,140.89,2.04298822]
[1641782534340,27.66479,140.93,140.85,1.774]
[1641782534341,36.92979,140.93,140.86,2.04298822]
[1641782534741,4.02765368,140.92,140.86,2.04298822]
[1641782535643,4.02765368,140.92,140.85,2.04298822]
[1641782537748,4.0,140.91,140.85,2.04298822]
[1641782538348,27.66479,140.89,140.85,2.04298822]
[1641782538550,33.58579,140.89,140.83,2.04298822]
[1641782538949,4.02765368,140.88,140.83,2.04298822]
[1641782539949,4.02765368,140.88,140.83,3.81698822]
[1641782540552,4.02765368,140.92,140.84,2.04298822]
[1641782542057,4.02765368,140.92,140.85,1.774]
[1641782542258,4.02765368,140.92,140.86,27.66479]
[1641782542859,4.02765368,140.92,140.87,2.04298822]
[1641782544463,4.02765368,140.92,140.88,1.774]
[1641782544760,4.02765368,140.92,140.88,7.847]
[1641782544960,4.02765368,140.92,140.89,2.04298822]
[1641782546860,4.02765368,140.92,140.88,2.04298822]
[1641782547062,15.00486682,140.98,140.89,6.608]
[1641782547259,15.00486682,140.98,140.9,5.772]
[1641782547460,15.00486682,140.99,140.9,5.772]
[1641782548061,15.00486682,140.99,140.91,4.0]
[1641782548261,15.00486682,140.99,140.95,27.66479]
[1641782548461,15.00486682,141.02,140.95,33.80179]
[1641782548660,4.02420606,140.98,140.96,2.88535282]
[1641782549061,4.02420606,141.01,140.96,2.88535282]
[1641782549662,12.57711648,141.01,140.95,27.66479]
[1641782551064,2.54017192,141.0,140.96,2.8852423]
[1641782551262,2.54017192,141.0,140.96,10.7982423]
[1641782551463,4.02420606,140.99,140.96,10.7982423]
[1641782551863,4.02420606,140.99,140.96,7.913]
[1641782552666,4.02420606,141.0,140.96,7.913]
[1641782553668,9.6734175,141.01,140.96,7.913]
[1641782553868,5.6734175,141.01,140.96,7.913]
[1641782554069,12.57733759,141.0,140.96,7.913]
[1641782554268,15.11578231,141.0,140.96,7.913]
[1641782554471,27.66479,140.98,140.96,7.913]
[1641782555069,4.02420606,140.97,140.96,7.913]
[1641782556373,4.02420606,140.97,140.92,54.4619]
[1641782556571,4.02420606,140.97,140.91,27.66479]
[1641782556773,27.66479,140.99,140.91,27.66479]
[1641782557173,4.02420606,140.98,140.92,2.88577122]
[1641782557572,12.57858197,140.98,140.92,2.88577122]
[1641782557975,12.57858197,140.98,140.9,2.88577122]
[1641782558374,27.66479,140.96,140.9,2.88577122]
[1641782558576,2.54133932,140.97,140.9,2.88577122]
[1641782558773,2.54133932,140.97,140.91,1.772]
[1641782558974,4.02420606,140.96,140.91,1.772]
[1641782559375,4.02420606,140.96,140.92,2.88577122]